fUSD/lending_fUSD_20240421
["ID","MTS","AMOUNT","RATE_DAILY","PERIOD"]
[323134647,1713703850039,-222.94,0.00016986,2]
[323134648,1713703850049,-797.41,0.00016986,2]
[323134649,1713703850060,-781.73,0.00016986,2]
[323134650,1713703850070,-500.0,0.00016986,2]
[323134651,1713703850080,-2874.38,0.00016986,2]
[323134652,1713703850089,-500.0,0.00016986,2]
[323134653,1713703850100,-2659.55,0.00016986,2]
[323134654,1713703850110,-500.0,0.00016986,2]
[323134655,1713703850120,-500.0,0.00016986,2]
[323134656,1713703850129,-750.38,0.00016986,2]
[323134657,1713703850138,-500.0,0.00016986,2]
[323134658,1713703850147,-945.29,0.00016986,2]
[323134659,1713703850156,-1789.82,0.00016986,2]
[323134660,1713703850166,-848.01,0.00016986,2]
[323134661,1713703850175,-500.0,0.00016986,2]
[323134662,1713703850185,-1597.32,0.00016986,2]
[323134663,1713703850194,-2231.0,0.00016986,2]
[323134664,1713703850203,-503.03,0.00016986,2]
[323134665,1713703850212,-1727.37,0.00016986,2]
[323134666,1713703850222,-1000.0,0.00017,2]
[323134667,1713703850231,-2152.0,0.00017,2]
[323134668,1713703850241,-2500.0,0.00017,5]
[323134669,1713703850250,-521.53624991,0.00017,2]
[323134670,1713703850260,-300.10928187,0.00017,2]
[323134671,1713703850269,-800.0,0.00017,2]
[323134672,1713703850279,-150.0,0.00017,2]
[323134673,1713703850288,-217.43136368,0.00017,2]
[323134674,1713703850297,-853.53647332,0.00017,2]
[323134675,1713703850308,-197.38915542,0.00017,2]
[323134676,1713703850317,-223.3866273,0.00017,2]
[323134677,1713703850327,-1740.94391165,0.00017,2]
[323134678,1713703850336,-2042.30009626,0.00017,2]
[323134679,1713703850346,-85657.05311177,0.00017004,2]
[323134680,1713703850658,-3643.88,0.00017004,2]
[323134681,1713703850670,-697.88034197,0.00017004,2]
[323134682,1713703850682,-302.06430009,0.00017004,2]
[323134683,1713703850693,-300.0,0.00017004,2]
[323134684,1713703850704,-801447.22187357,0.00017004,2]
[323134685,1713703850714,-3290.12252338,0.00017004,2]
[323134686,1713703850723,-975.96,0.00017009,2]
[323134687,1713703850733,-13668.75224195,0.0001706,2]
[323134688,1713703850742,-151.0,0.0001706,2]
[323134689,1713703850751,-3260.258068,0.0001708,2]
[323134690,1713703850761,-161.00693236,0.0001709,2]
[323134691,1713703850770,-6555.0,0.00017096,2]
[323134692,1713703850780,-1070.54,0.00017099,2]
[323134693,1713703850789,-651.300516,0.00017099,2]
[323134694,1713703850799,-651.300516,0.00017099,2]
[323134695,1713703850809,-218.31034,0.00017099,2]
[323134696,1713703850819,-218.31034,0.00017099,2]
[323134697,1713703850828,-1369.11,0.00017099,2]
[323134698,1713703850838,-106673.48614673,0.000171,2]
[323134699,1713703850847,-151.0,0.000171,2]
[323134700,1713703850857,-1000.0,0.000171,2]
[323134701,1713703850867,-1893.26169605,0.00017157,2]
[323134702,1713703850877,-1385.8947467,0.00017187,2]
[323134703,1713703850886,-837.0,0.00017233,2]
[323134704,1713703850896,-539.0,0.00017233,2]
[323134705,1713703850905,-2065.92600182,0.00017233,2]
[323134706,1713703850914,-13668.75224195,0.00017234,2]
[323134707,1713703850924,-1070.54,0.00017259,2]
[323134708,1713703850933,-1369.11,0.00017259,2]
[323134709,1713703850943,-630.34,0.0001726,2]
[323134710,1713703850952,-185.22245203,0.0001726,2]
[323134711,1713703850961,-606.55,0.0001726,2]
[323134712,1713703850971,-500.0,0.0001726,2]
[323134713,1713703850980,-794.99,0.0001726,2]
[323134714,1713703850989,-500.0,0.0001726,2]
[323134715,1713703850999,-667.15,0.0001726,2]
[323134716,1713703851009,-731.28,0.0001726,2]
[323134717,1713703851020,-500.0,0.0001726,2]
[323134718,1713703851031,-617.43,0.0001726,2]
[323134719,1713703851040,-797.28,0.0001726,2]
[323134720,1713703851050,-870.35,0.0001726,2]
[323134721,1713703851060,-657.43,0.0001726,2]
[323134722,1713703851070,-500.0,0.0001726,2]
[323134723,1713703851080,-1076.85,0.0001726,2]
[323134724,1713703851090,-564.89,0.0001726,2]
[323134725,1713703851101,-900.43,0.0001726,2]
[323134726,1713703851111,-818.54,0.0001726,2]
[323134727,1713703851120,-877.26,0.0001726,2]
[323134728,1713703851131,-1305.63,0.0001726,2]
[323134729,1713703851141,-649.52,0.0001726,2]
[323134730,1713703851150,-815.01,0.0001726,2]
[323134731,1713703851160,-1222.11,0.0001726,2]
[323134732,1713703851169,-700.25,0.0001726,2]
[323134733,1713703851178,-1388.09,0.0001726,2]
[323134734,1713703851188,-537.33,0.0001726,2]
[323134735,1713703851197,-701.07,0.0001726,2]
[323134736,1713703851207,-875.52,0.0001726,2]
[323134737,1713703851216,-500.0,0.0001726,2]
[323134738,1713703851225,-966.81,0.0001726,2]
[323134739,1713703851235,-500.0,0.0001726,2]
[323134740,1713703851244,-1112.61,0.0001726,2]
[323134741,1713703851253,-787.21,0.0001726,2]
[323134742,1713703851262,-500.0,0.0001726,2]
[323134743,1713703851271,-920.72,0.0001726,2]
[323134744,1713703851280,-948.74,0.0001726,2]
[323134745,1713703851290,-513.32,0.0001726,2]
[323134746,1713703851300,-702.95,0.0001726,2]
[323134747,1713703851310,-2016.61,0.0001726,2]
[323134748,1713703851320,-1035.72,0.0001726,2]
[323134749,1713703851329,-500.0,0.0001726,2]
[323134750,1713703851339,-798.22,0.0001726,2]
[323134751,1713703851348,-1151.14,0.0001726,2]
[323134752,1713703851357,-891.59,0.0001726,2]
[323134753,1713703851367,-1881.96,0.0001726,2]
[323134754,1713703851376,-1284.68,0.0001726,2]
[323134755,1713703851386,-746.21,0.0001726,2]
[323134756,1713703851395,-528.29,0.0001726,2]
[323134757,1713703851404,-201.72,0.0001726,2]
[323134758,1713703851414,-1005.87,0.0001726,2]
[323134759,1713703851424,-1895.51,0.0001726,2]
[323134760,1713703851433,-952.01,0.0001726,2]
[323134761,1713703851442,-1290.82,0.0001726,2]
[323134762,1713703851451,-840.27,0.0001726,2]
[323134763,1713703851461,-690.15,0.0001726,2]
[323134764,1713703851470,-500.0,0.0001726,2]
[323134765,1713703851479,-500.0,0.0001726,2]
[323134766,1713703851489,-915.53,0.0001726,2]
[323134767,1713703851498,-959.32,0.0001726,2]
[323134768,1713703851508,-720.36,0.0001726,2]
[323134769,1713703851517,-1127.34,0.0001726,2]
[323134770,1713703851527,-712.54,0.0001726,2]
[323134771,1713703851537,-728.93,0.0001726,2]
[323134772,1713703851546,-500.0,0.0001726,2]
[323134773,1713703851558,-500.0,0.0001726,2]
[323134774,1713703851567,-837.27,0.0001726,2]
[323134775,1713703851576,-1200.69,0.0001726,2]
[323134776,1713703851587,-500.0,0.0001726,2]
[323134777,1713703851596,-575.82,0.0001726,2]
[323134778,1713703851605,-500.0,0.0001726,2]
[323134779,1713703851615,-1491.61,0.0001726,2]
[323134780,1713703851624,-362.98,0.0001726,2]
[323134781,1713703851633,-729.42,0.0001726,2]
[323134782,1713703851642,-1071.35,0.0001726,2]
[323134783,1713703851652,-981.15,0.0001726,2]
[323134784,1713703851661,-766.16,0.0001726,2]
[323134785,1713703851670,-236.72,0.0001726,2]
[323134786,1713703851680,-500.0,0.0001726,2]
[323134787,1713703851689,-1289.16,0.0001726,2]
[323134788,1713703851698,-500.0,0.0001726,2]
[323134789,1713703851707,-756.39,0.0001726,2]
[323134790,1713703851717,-796.74,0.0001726,2]
[323134791,1713703851726,-500.0,0.0001726,2]
[323134792,1713703851736,-217.6,0.0001726,2]
[323134793,1713703851745,-500.0,0.0001726,2]
[323134794,1713703851754,-500.0,0.0001726,2]
[323134795,1713703851763,-903.36,0.0001726,2]
[323134796,1713703851772,-726.79,0.0001726,2]
[323134797,1713703851781,-500.0,0.0001726,2]
[323134798,1713703851791,-867.78,0.0001726,2]
[323134799,1713703851801,-500.0,0.0001726,2]
[323134800,1713703851812,-500.0,0.0001726,2]
[323134801,1713703851822,-959.32,0.0001726,2]
[323134802,1713703851832,-500.0,0.0001726,2]
[323134803,1713703851841,-500.0,0.0001726,2]
[323134804,1713703851850,-556.22,0.0001726,2]
[323134805,1713703851860,-1030.26,0.0001726,2]
[323134806,1713703851869,-1338.06,0.0001726,2]
[323134807,1713703851879,-500.0,0.0001726,2]
[323134808,1713703851889,-500.0,0.0001726,2]
[323134809,1713703851899,-500.0,0.0001726,2]
[323134810,1713703851908,-500.0,0.0001726,2]
[323134811,1713703851917,-645.21,0.0001726,2]
[323134812,1713703851927,-471.23726638,0.0001726,2]
[323134813,1713703851936,-691.32,0.0001726,2]
[323134814,1713703851946,-705.19,0.0001726,2]
[323134815,1713703851955,-173.23,0.0001726,2]
[323134816,1713703851965,-150.0,0.0001726,2]
[323134817,1713703851975,-500.0,0.0001726,2]
[323134818,1713703851984,-643.31,0.0001726,2]
[323134819,1713703851994,-500.0,0.0001726,2]
[323134820,1713703852003,-500.0,0.0001726,2]
[323134821,1713703852013,-500.0,0.0001726,2]
[323134822,1713703852026,-1033.5,0.0001726,2]
[323134823,1713703852035,-998.78,0.0001726,2]
[323134824,1713703852098,-715.09,0.0001726,2]
[323134825,1713703852108,-1195.92,0.0001726,2]
[323134826,1713703852117,-500.0,0.0001726,2]
[323134827,1713703852126,-531.9,0.0001726,2]
[323134828,1713703852135,-1091.89,0.0001726,2]
[323134829,1713703852145,-481.78,0.0001726,2]
[323134830,1713703852155,-924.95,0.0001726,2]
[323134831,1713703852164,-736.26,0.0001726,2]
[323134832,1713703852174,-631.94,0.0001726,2]
[323134833,1713703852183,-1041.24,0.0001726,2]
[323134834,1713703852192,-1020.3,0.0001726,2]
[323134835,1713703852202,-536.71,0.0001726,2]
[323134836,1713703852212,-500.0,0.0001726,2]
[323134837,1713703852221,-500.0,0.0001726,2]
[323134838,1713703852231,-501.07,0.0001726,2]
[323134839,1713703852241,-815.09,0.0001726,2]
[323134840,1713703852250,-500.0,0.0001726,2]
[323134841,1713703852259,-556.84,0.0001726,2]
[323134842,1713703852269,-500.0,0.0001726,2]
[323134843,1713703852278,-1393.98,0.0001726,2]
[323134844,1713703852287,-957.57,0.0001726,2]
[323134845,1713703852297,-500.0,0.0001726,2]
[323134846,1713703852307,-904.56,0.0001726,2]
[323134847,1713703852316,-921.66,0.0001726,2]
[323134848,1713703852325,-1599.79,0.0001726,2]
[323134849,1713703852335,-500.0,0.0001726,2]
[323134850,1713703852344,-500.0,0.0001726,2]
[323134851,1713703852353,-500.0,0.0001726,2]
[323134852,1713703852363,-500.0,0.0001726,2]
[323134853,1713703852373,-701.7,0.0001726,2]
[323134854,1713703852382,-651.300516,0.0001726,2]
[323134855,1713703852391,-651.300516,0.0001726,2]
[323134856,1713703852400,-500.0,0.0001726,2]
[323134857,1713703852410,-651.300516,0.0001726,2]
[323134858,1713703852419,-954.11,0.0001726,2]
[323134859,1713703852429,-651.300516,0.0001726,2]
[323134860,1713703852438,-1515.84,0.0001726,2]
[323134861,1713703852447,-500.0,0.0001726,2]
[323134862,1713703852457,-818.41,0.0001726,2]
[323134863,1713703852466,-500.0,0.0001726,2]
[323134864,1713703852475,-9640.44,0.0001726,2]
[323134865,1713703852484,-806.22,0.0001726,2]
[323134866,1713703852494,-1307.97,0.0001726,2]
[323134867,1713703852504,-841.31,0.0001726,2]
[323134868,1713703852514,-744.07,0.0001726,2]
[323134869,1713703852523,-661.88,0.0001726,2]
[323134870,1713703852532,-500.31,0.0001726,2]
[323134871,1713703852542,-500.0,0.0001726,2]
[323134872,1713703852551,-500.0,0.0001726,2]
[323134873,1713703852561,-500.0,0.0001726,2]
[323134874,1713703852570,-500.0,0.0001726,2]
[323134875,1713703852579,-564.96,0.0001726,2]
[323134876,1713703852588,-500.0,0.0001726,2]
[323134877,1713703852597,-1109.92,0.0001726,2]
[323134878,1713703852607,-500.0,0.0001726,2]
[323134879,1713703852616,-781.83,0.0001726,2]
[323134880,1713703852625,-2136.36,0.0001726,2]
[323134881,1713703852634,-686.02,0.0001726,2]
[323134882,1713703852643,-673.9,0.0001726,2]
[323134883,1713703852652,-2698.1,0.0001726,2]
[323134884,1713703852661,-522.53,0.0001726,2]
[323134885,1713703852671,-500.0,0.0001726,2]
[323134886,1713703852679,-794.51,0.0001726,2]
[323134887,1713703852689,-988.09,0.0001726,2]
[323134888,1713703852698,-687.74,0.0001726,2]
[323134889,1713703852707,-218.31034,0.0001726,2]
[323134890,1713703852716,-218.31034,0.0001726,2]
[323134891,1713703852725,-834.62,0.0001726,2]
[323134892,1713703852735,-566.87,0.0001726,2]
[323134893,1713703852745,-1366.95,0.0001726,2]
[323134894,1713703852754,-218.31034,0.0001726,2]
[323134895,1713703852763,-1307.05,0.0001726,2]
[323134896,1713703852773,-218.31034,0.0001726,2]
[323134897,1713703852782,-633.04,0.0001726,2]
[323134898,1713703852791,-1063.71,0.0001726,2]
[323134899,1713703852799,-726.14,0.0001726,2]
[323134900,1713703852809,-657.69,0.0001726,2]
[323134901,1713703852818,-627.06,0.0001726,2]
[323134902,1713703852827,-663.49,0.0001726,2]
[323134903,1713703852837,-3069.34,0.0001726,2]
[323134904,1713703852846,-1206.78,0.0001726,2]
[323134905,1713703852855,-1667.8,0.0001726,2]
[323134906,1713703852865,-1235.07,0.0001726,2]
[323134907,1713703852874,-785.6,0.0001726,2]
[323134908,1713703852883,-1777.79,0.0001726,2]
[323134909,1713703852893,-1164.03,0.0001726,2]
[323134910,1713703852903,-702.79,0.0001726,2]
[323134911,1713703852912,-793.56,0.0001726,2]
[323134912,1713703852921,-500.0,0.0001726,2]
[323134913,1713703852930,-690.91,0.0001726,2]
[323134914,1713703852940,-1011.83,0.0001726,2]
[323134915,1713703852949,-633.58,0.0001726,2]
[323134916,1713703852958,-500.0,0.0001726,2]
[323134917,1713703852967,-934.07,0.0001726,2]
[323134918,1713703852977,-804.03,0.0001726,2]
[323134919,1713703852986,-1353.25,0.0001726,2]
[323134920,1713703852995,-649.86,0.0001726,2]
[323134921,1713703853004,-500.0,0.0001726,2]
[323134922,1713703853014,-865.97,0.0001726,2]
[323134923,1713703853027,-1369.4,0.0001726,2]
[323134924,1713703853037,-747.02,0.0001726,2]
[323134925,1713703853047,-1369.91,0.0001726,2]
[323134926,1713703853057,-500.0,0.0001726,2]
[323134927,1713703853067,-1082.87,0.0001726,2]
[323134928,1713703853077,-1282.09,0.0001726,2]
[323134929,1713703853086,-11591.68,0.0001726,2]
[323134930,1713703853096,-500.0,0.0001726,2]
[323134931,1713703853107,-439.25,0.0001726,2]
[323134932,1713703853117,-500.0,0.0001726,2]
[323134933,1713703853126,-780.15,0.0001726,2]
[323134934,1713703853136,-1338.42,0.0001726,2]
[323134935,1713703853145,-1407.68,0.0001726,2]
[323134936,1713703853155,-500.0,0.0001726,2]
[323134937,1713703853164,-897.72,0.0001726,2]
[323134938,1713703853173,-500.0,0.0001726,2]
[323134939,1713703853182,-881.82,0.0001726,2]
[323134940,1713703853193,-1814.96,0.0001726,2]
[323134941,1713703853202,-506.59,0.0001726,2]
[323134942,1713703853211,-1994.37,0.0001726,2]
[323134943,1713703853221,-500.06,0.0001726,2]
[323134944,1713703853231,-837.83,0.0001726,2]
[323134945,1713703853240,-641.08,0.0001726,2]
[323134946,1713703853250,-774.16,0.0001726,2]
[323134947,1713703853259,-679.73,0.0001726,2]
[323134948,1713703853270,-1410.25,0.0001726,2]
[323134949,1713703853279,-975.76,0.0001726,2]
[323134950,1713703853289,-599.79,0.0001726,2]
[323134951,1713703853299,-1592.34,0.0001726,2]
[323134952,1713703853310,-1165.17,0.0001726,2]
[323134953,1713703853319,-536.61,0.0001726,2]
[323134954,1713703853328,-1112.17,0.0001726,2]
[323134955,1713703853338,-500.0,0.0001726,2]
[323134956,1713703853347,-500.0,0.0001726,2]
[323134957,1713703853357,-734.8,0.0001726,2]
[323134958,1713703853366,-1364.27,0.0001726,2]
[323134959,1713703853376,-500.0,0.0001726,2]
[323134960,1713703853385,-500.0,0.0001726,2]
[323134961,1713703853395,-500.0,0.0001726,2]
[323134962,1713703853405,-868.35,0.0001726,2]
[323134963,1713703853415,-500.0,0.0001726,2]
[323134964,1713703853424,-817.11,0.0001726,2]
[323134965,1713703853434,-601.46,0.0001726,2]
[323134966,1713703853443,-1398.98,0.0001726,2]
[323134967,1713703853453,-1865.99,0.0001726,2]
[323134968,1713703853463,-530.16,0.0001726,2]
[323134969,1713703853473,-2047.34,0.0001726,2]
[323134970,1713703853482,-793.89,0.0001726,2]
[323134971,1713703853491,-500.0,0.0001726,2]
[323134972,1713703853501,-500.0,0.0001726,2]
[323134973,1713703853511,-500.0,0.0001726,2]
[323134974,1713703853521,-500.0,0.0001726,2]
[323134975,1713703853530,-1170.77,0.0001726,2]
[323134976,1713703853540,-575.02,0.0001726,2]
[323134977,1713703853550,-595.22,0.0001726,2]
[323134978,1713703853559,-1593.43,0.0001726,2]
[323134979,1713703853569,-604.06,0.0001726,2]
[323134980,1713703853578,-702.98,0.0001726,2]
[323134981,1713703853588,-2060.1,0.0001726,2]
[323134982,1713703853598,-500.0,0.0001726,2]
[323134983,1713703853607,-926.58,0.0001726,2]
[323134984,1713703853617,-2018.56,0.0001726,2]
[323134985,1713703853626,-873.45,0.0001726,2]
[323134986,1713703853636,-607.23,0.0001726,2]
[323134987,1713703853645,-500.0,0.0001726,2]
[323134988,1713703853655,-1503.38,0.0001726,2]
[323134989,1713703853665,-500.0,0.0001726,2]
[323134990,1713703853674,-847.45,0.0001726,2]
[323134991,1713703853684,-1239.54,0.0001726,2]
[323134992,1713703853694,-760.18,0.0001726,2]
[323134993,1713703853703,-1006.77,0.0001726,2]
[323134994,1713703853713,-1850.19,0.0001726,2]
[323134995,1713703853722,-1602.29,0.0001726,2]
[323134996,1713703853732,-715.92,0.0001726,2]
[323134997,1713703853741,-780.11,0.0001726,2]
[323134998,1713703853751,-991.79,0.0001726,2]
[323134999,1713703853760,-607.09284093,0.0001726,2]
[323135000,1713703853770,-670.99,0.0001726,2]
[323135001,1713703853780,-500.0,0.0001726,2]
[323135002,1713703853789,-500.0,0.0001726,2]
[323135003,1713703853799,-1188.1,0.0001726,2]
[323135004,1713703853810,-500.0,0.0001726,2]
[323135005,1713703853819,-646.16,0.0001726,2]
[323135006,1713703853829,-1590.79,0.0001726,2]
[323135007,1713703853842,-715.59,0.0001726,2]
[323135008,1713703853852,-958.53,0.0001726,2]
[323135009,1713703853862,-554.32,0.0001726,2]
[323135010,1713703853872,-500.0,0.0001726,2]
[323135011,1713703853881,-709.68,0.0001726,2]
[323135012,1713703853891,-1289.35,0.0001726,2]
[323135013,1713703853901,-797.41,0.0001726,2]
[323135014,1713703853911,-781.73,0.0001726,2]
[323135015,1713703853921,-500.0,0.0001726,2]
[323135016,1713703853931,-2874.38,0.0001726,2]
[323135017,1713703853940,-500.0,0.0001726,2]
[323135018,1713703853950,-2659.55,0.0001726,2]
[323135019,1713703853960,-500.0,0.0001726,2]
[323135020,1713703853969,-451.2,0.0001726,2]
[323135021,1713703853979,-750.38,0.0001726,2]
[323135022,1713703853989,-945.29,0.0001726,2]
[323135023,1713703853998,-500.0,0.0001726,2]
[323135024,1713703854008,-1789.82,0.0001726,2]
[323135025,1713703854019,-848.01,0.0001726,2]
[323135026,1713703854032,-500.0,0.0001726,2]
[323135027,1713703854041,-1597.32,0.0001726,2]
[323135028,1713703854051,-2231.0,0.0001726,2]
[323135029,1713703854062,-503.03,0.0001726,2]
[323135030,1713703854072,-1727.37,0.0001726,2]
[323135031,1713703854081,-150.940564,0.0001726,2]
[323135032,1713703854092,-3260.258068,0.00017291,2]
[323135033,1713703854103,-365086.45990257,0.00017334,2]
[323135034,1713703854113,-651.300516,0.00017334,2]
[323135035,1713703854123,-651.300516,0.00017334,2]
[323135036,1713703854132,-218.31034,0.00017334,2]
[323135037,1713703854142,-218.31034,0.00017334,2]
[323135038,1713703854151,-2524.49212641,0.00017379,2]
[323135039,1713703854161,-13668.75224195,0.00017408,2]
[323135040,1713703854171,-544.27,0.00017424,2]
[323135041,1713703854181,-217.43136366,0.0001745,2]
[323135042,1713703854190,-853.5364733,0.0001745,2]
[323135043,1713703854200,-1740.94391163,0.0001745,2]
[323135044,1713703854209,-2042.30009626,0.0001745,2]
[323135045,1713703854219,-150.0,0.000175,2]
[323135046,1713703854229,-3260.258068,0.00017502,2]
[323135047,1713703854238,-1832.82,0.00017514,2]
[323135048,1713703854248,-1893.26169605,0.00017529,2]
[323135049,1713703854257,-1070.54,0.00017533,2]
[323135050,1713703854267,-1369.11,0.00017533,2]
[323135051,1713703854277,-630.34,0.00017534,2]
[323135052,1713703854286,-606.55,0.00017534,2]
[323135053,1713703854296,-500.0,0.00017534,2]
[323135054,1713703854305,-794.99,0.00017534,2]
[323135055,1713703854315,-214.18,0.00017534,2]
[323135056,1713703854324,-667.15,0.00017534,2]
[323135057,1713703854334,-731.28,0.00017534,2]
[323135058,1713703854344,-500.0,0.00017534,2]
[323135059,1713703854354,-617.43,0.00017534,2]
[323135060,1713703854364,-797.28,0.00017534,2]
[323135061,1713703854374,-870.35,0.00017534,2]
[323135062,1713703854384,-657.43,0.00017534,2]
[323135063,1713703854393,-500.0,0.00017534,2]
[323135064,1713703854403,-1076.85,0.00017534,2]
[323135065,1713703854413,-564.89,0.00017534,2]
[323135066,1713703854422,-900.43,0.00017534,2]
[323135067,1713703854432,-818.54,0.00017534,2]
[323135068,1713703854442,-877.26,0.00017534,2]
[323135069,1713703854451,-1305.63,0.00017534,2]
[323135070,1713703854461,-649.52,0.00017534,2]
[323135071,1713703854471,-815.01,0.00017534,2]
[323135072,1713703854481,-1222.11,0.00017534,2]
[323135073,1713703854491,-700.25,0.00017534,2]
[323135074,1713703854501,-1388.09,0.00017534,2]
[323135075,1713703854510,-537.33,0.00017534,2]
[323135076,1713703854520,-701.07,0.00017534,2]
[323135077,1713703854530,-875.52,0.00017534,2]
[323135078,1713703854540,-500.0,0.00017534,2]
[323135079,1713703854551,-966.81,0.00017534,2]
[323135080,1713703854563,-500.0,0.00017534,2]
[323135081,1713703854573,-1112.61,0.00017534,2]
[323135082,1713703854582,-787.21,0.00017534,2]
[323135083,1713703854592,-500.0,0.00017534,2]
[323135084,1713703854602,-920.72,0.00017534,2]
[323135085,1713703854612,-948.74,0.00017534,2]
[323135086,1713703854622,-513.32,0.00017534,2]
[323135087,1713703854631,-702.95,0.00017534,2]
[323135088,1713703854641,-2016.61,0.00017534,2]
[323135089,1713703854651,-1035.72,0.00017534,2]
[323135090,1713703854661,-500.0,0.00017534,2]
[323135091,1713703854670,-798.22,0.00017534,2]
[323135092,1713703854680,-1151.14,0.00017534,2]
[323135093,1713703854690,-891.59,0.00017534,2]
[323135094,1713703854699,-1881.96,0.00017534,2]
[323135095,1713703854710,-1284.68,0.00017534,2]
[323135096,1713703854719,-746.21,0.00017534,2]
[323135097,1713703854729,-528.29,0.00017534,2]
[323135098,1713703854738,-1005.87,0.00017534,2]
[323135099,1713703854748,-1895.51,0.00017534,2]
[323135100,1713703854758,-952.01,0.00017534,2]
[323135101,1713703854767,-1290.82,0.00017534,2]
[323135102,1713703854777,-840.27,0.00017534,2]
[323135103,1713703854787,-690.15,0.00017534,2]
[323135104,1713703854797,-500.0,0.00017534,2]
[323135105,1713703854808,-500.0,0.00017534,2]
[323135106,1713703854818,-915.53,0.00017534,2]
[323135107,1713703854828,-959.32,0.00017534,2]
[323135108,1713703854837,-720.36,0.00017534,2]
[323135109,1713703854847,-1127.34,0.00017534,2]
[323135110,1713703854857,-712.54,0.00017534,2]
[323135111,1713703854867,-728.93,0.00017534,2]
[323135112,1713703854876,-215.04,0.00017534,2]
[323135113,1713703854887,-200.92,0.00017534,2]
[323135114,1713703854897,-837.27,0.00017534,2]
[323135115,1713703854907,-1200.69,0.00017534,2]
[323135116,1713703854917,-500.0,0.00017534,2]
[323135117,1713703854927,-575.82,0.00017534,2]
[323135118,1713703854937,-511.81,0.00017534,2]
[323135119,1713703854948,-1491.61,0.00017534,2]
[323135120,1713703854958,-729.42,0.00017534,2]
[323135121,1713703854967,-1071.35,0.00017534,2]
[323135122,1713703854977,-981.15,0.00017534,2]
[323135123,1713703854987,-766.16,0.00017534,2]
[323135124,1713703854997,-500.0,0.00017534,2]
[323135125,1713703855007,-1289.16,0.00017534,2]
[323135126,1713703855019,-458.56,0.00017534,2]
[323135127,1713703855030,-756.39,0.00017534,2]
[323135128,1713703855040,-796.74,0.00017534,2]
[323135129,1713703855050,-500.0,0.00017534,2]
[323135130,1713703855061,-500.0,0.00017534,2]
[323135131,1713703855071,-500.0,0.00017534,2]
[323135132,1713703855081,-903.36,0.00017534,2]
[323135133,1713703855091,-726.79,0.00017534,2]
[323135134,1713703855103,-500.0,0.00017534,2]
[323135135,1713703855113,-867.78,0.00017534,2]
[323135136,1713703855123,-500.0,0.00017534,2]
[323135137,1713703855132,-500.0,0.00017534,2]
[323135138,1713703855142,-959.32,0.00017534,2]
[323135139,1713703855151,-500.0,0.00017534,2]
[323135140,1713703855161,-500.0,0.00017534,2]
[323135141,1713703855170,-1030.26,0.00017534,2]
[323135142,1713703855180,-1338.06,0.00017534,2]
[323135143,1713703855190,-500.0,0.00017534,2]
[323135144,1713703855199,-500.0,0.00017534,2]
[323135145,1713703855208,-516.96,0.00017534,2]
[323135146,1713703855218,-500.0,0.00017534,2]